Cogmind - Beta 10.2 @@@ ROGUE MODE // 2021.07.24 @ 18:05:28 Player: Plexion Result: Destroyed by G-34 Mercenary with Small Laser Performance ------------- Evolutions (0) 0 Regions Visited (2) 400 Robots Destroyed (10) 50 Value Destroyed (248) 248 Prototype IDs (0) 0 Alien Tech Used (0) 0 Bonus (0) 0 TOTAL SCORE: 698 Bonus ------- None Cogmind --------- Core Integrity 0/250 Matter 13/300 Energy 100/100 System Corruption 0% Temperature Cool (7) Movement Treading (160) Location -10/Mines Parts ------- > --- POWER (1) -------- (None) > --- PROPULSION (2) --- Light Treads Light Treads > --- UTILITY (2) ------ Medium Storage Unit Large Storage Unit > --- WEAPON (2) ------- Assault Rifle Light Assault Rifle > --- INVENTORY (14) --- Light Treads Light Treads Light Treads Armor Integrity Analyzer Light Armor Plating Light Armor Plating Light Assault Rifle Peak State ------------ > --- POWER ------------ Light Angular Momentum Engine > --- PROPULSION ------- Light Treads Light Treads > --- UTILITY ---------- Medium Storage Unit Large Storage Unit > --- WEAPON ----------- Assault Rifle Light Cannon > --- INVENTORY -------- Light Treads Light Treads Light Treads Light Treads Light Treads Armor Integrity Analyzer Light Armor Plating Light Armor Plating Small Laser Light Assault Rifle Light Assault Rifle Heavy Assault Rifle [Rating: 12] Favorites ----------- Power Light Ion Engine Engine Light Ion Engine Propulsion Light Treads Treads Light Treads Utility Large Storage Unit Storage Large Storage Unit Weapon Assault Rifle Energy Gun Small Laser Ballistic Gun Assault Rifle Ballistic Cannon Light Cannon Build | -11 -10 -10 ------- Run | Scr Mat Min Slots Evolved . | . . . Power . | . . . Propulsion . | . . . Utility . | . . . Weapon . | . . . Parts Attached 27 | 7 11 9 Power 5 | 1 3 1 Engine 5 | 1 3 1 Core . | . . . Reactor . | . . . Propulsion 10 | 2 5 3 Treads 10 | 2 5 3 Leg . | . . . Wheel . | . . . Hover . | . . . Flight . | . . . Utility 3 | 1 2 . Device . | . . . Storage 3 | 1 2 . Processor . | . . . Hackware . | . . . Protection . | . . . Artifact . | . . . Weapon 9 | 3 1 5 Energy Gun 3 | 1 1 1 Energy Cannon . | . . . Ballistic Gun 5 | 2 . 3 Ballistic Cannon 1 | . . 1 Launcher . | . . . Special Weapon . | . . . Impact Weapon . | . . . Slashing Weapon . | . . . Piercing Weapon . | . . . Special Melee Weapon . | . . . Unidentified Prototypes . | . . . Parts Lost 7 | . . 7 Power 2 | . . 2 Propulsion 2 | . . 2 Utility . | . . . Weapon 3 | . . 3 Highest Loss Streak 6 | . . 6 Average Slot Usage (%) 90 | . 88 91 Engine 9 | . 13 7 Treads 27 | . 25 27 Storage 25 | . 20 28 Energy Gun 7 | . 13 3 Ballistic Gun 13 | . 14 13 Ballistic Cannon 6 | . . 10 Naked Turns . | . . . Heaviest Build 37 | 10 32 37 Greatest Support 40 | 40 40 40 Greatest Overweight (x) 3 | . 3 1 Average Overweight (x) . | . . . Largest Inventory Capacity 14 | 6 14 14 Average Capacity 11 | 5 8 14 Most Carried 13 | 2 7 13 Average Carried 8 | 1 2 11 Final Capacity 14 | 6 14 14 Final Carried 7 | 2 6 7 Class Distribution -------------------- 100% | Mutant Dominant Class ---------------- Mutant | -10/Materials Mutant | -10/Mines Resources | -11 -10 -10 ----------- Run | Scr Mat Min Matter Collected 616 | 180 142 294 Remotely . | . . . Salvage Created 283 | . 142 141 Parts 20 | . 9 11 Haulers Intercepted 1 | . 1 . Recyclers Shooed . | . . . Parts Field Recycled . | . . . Retrieved Matter . | . . . Parts Self-Destructed . | . . . Prevented . | . . . Kills | -11 -10 -10 ------- Run | Scr Mat Min Combat Hostiles Destroyed 7 | . 2 5 Melee 1 | . . 1 Guns 4 | . 2 2 Cannons 2 | . . 2 Classes Destroyed 5 | . 2 3 Builder 1 | . . 1 Tunneler 2 | . . 2 Hauler 1 | . 1 . Grunt 6 | . 2 4 Assembled 1 | . . 1 Best Kill Streak 2 | . 2 2 Combat Bots Only 2 | . 2 2 Max Kills in Single Turn 1 | . 1 1 Gunslinging . | . . . Exploded . | . . . Melee 1 | . . 1 Uniques/NPCs Destroyed . | . . . Combat | -11 -10 -10 -------- Run | Scr Mat Min Damage Taken 1103 | . 75 1028 Core 254 | . 32 222 Absorbed by Shields . | . . . Core Remaining (%) 100 | 100 . . Volleys Fired 110 | . 13 97 Largest 2 | . 2 2 Hottest 75 | . 60 75 Shots Fired 152 | . 26 126 Gun 71 | . 26 45 Cannon 81 | . . 81 Launcher . | . . . Special . | . . . Kinetic 133 | . 13 120 Thermal 19 | . 13 6 Explosive . | . . . Electromagnetic . | . . . Robot Hit Streak 8 | . 7 8 Robot Miss Streak 3 | . 2 3 Penetration Max . | . . . Secondary Targets . | . . . Shots Hit Robots 70 | . 20 50 Core Hits 20 | . 8 12 Critical Hits 1 | . . 1 Critical Kills 1 | . . 1 Critical Parts Destroyed . | . . . Melee Attacks . | . . . Impact . | . . . Slashing . | . . . Piercing . | . . . Sneak Attacks . | . . . Combat Hostiles . | . . . Follow-up Attacks . | . . . Damage Inflicted 843 | . 262 581 Guns 595 | . 262 333 Cannons 244 | . . 244 Explosions . | . . . Melee . | . . . Ramming 4 | . . 4 Kinetic 691 | . 149 542 Thermal 148 | . 113 35 Explosive . | . . . Electromagnetic . | . . . Impact . | . . . Slashing . | . . . Piercing . | . . . Highest Corruption . | . . . Average Corruption . | . . . Corruption Purged . | . . . Overload Shots . | . . . Overflow Damage 2 | . . 2 Projectiles 2 | . . 2 Explosions . | . . . Melee . | . . . Knockbacks 4 | . . 4 Impact . | . . . Kinetic 4 | . . 4 Secondary . | . . . Self-Inflicted Damage . | . . . Shots . | . . . Rammed 1 | . . 1 Targets Rammed 2 | . . 2 Kicked . | . . . Crushed 1 | . . 1 Highest Temperature 210 | . 36 210 Average Temperature 65 | . 26 79 Received Heat Transfer 420 | . 42 378 Siege Activations . | . . . Robots Corrupted . | . . . Combat Hostiles . | . . . Parts Fried . | . . . Impact Corruptions . | . . . Robots Melted . | . . . Combat Hostiles . | . . . Parts Melted . | . . . Heat Transferred 325 | . 250 75 Parts Sabotaged . | . . . Parts Stolen . | . . . Parts Stripped . | . . . Power Chain Reactions . | . . . Missiles Intercepted . | . . . Alert | -11 -10 -10 ------- Run | Scr Mat Min Peak Influence 80 | . 80 65 Initial 8 | . . 8 Average 16 | . 35 7 Maximum Alert Level . | . . . Low Security (%) 100 | 100 100 100 Level 1 . | . . . Level 2 . | . . . Level 3 . | . . . Level 4 . | . . . Level 5 . | . . . High Security . | . . . Max Security . | . . . Squads Dispatched . | . . . Investigation . | . . . Extermination . | . . . Reinforcement . | . . . Assault . | . . . Garrison . | . . . Intercept . | . . . Construction Impeded . | . . . Haulers Reinforced . | . . . Stealth | -11 -10 -10 --------- Run | Scr Mat Min Distress Signals . | . . . Communications Jammed . | . . . Distress Signals . | . . . Times Spotted 19 | . 8 11 Peak Tracking Total 4 | . 2 4 Tactical Retreats 4 | . . 4 Traps | -11 -10 -10 ------- Run | Scr Mat Min Traps Triggered 3 | . 3 . Indirectly . | . . . Trap Hack Attempts . | . . . Triggered . | . . . Disarmed . | . . . Reprogrammed . | . . . Reused . | . . . Traps Extracted . | . . . Installed . | . . . Triggered . | . . . Machines | -11 -10 -10 ---------- Run | Scr Mat Min Machines Disabled 1 | . . 1 Max in Single Turn 1 | . . 1 Machines Sabotaged . | . . . Garrisons Compromised . | . . . Overloaded Fab Kills . | . . . Fab Network Shutdowns . | . . . Hacking | -11 -10 -10 --------- Run | Scr Mat Min Machines Accessed . | . . . Terminals . | . . . Fabricators . | . . . Repair Stations . | . . . Recycling Units . | . . . Scanalyzers . | . . . Garrison Access . | . . . Total Hacks . | . . . Successful . | . . . Failed . | . . . Catastrophic . | . . . Database Lockouts . | . . . Manual . | . . . Terminals . | . . . Fabricators . | . . . Repair Stations . | . . . Recycling Units . | . . . Scanalyzers . | . . . Garrison Access . | . . . Terminal Hacks . | . . . Fabricator Hacks . | . . . Repair Station Hacks . | . . . Recycling Unit Hacks . | . . . Scanalyzer . | . . . Garrison Access Hacks . | . . . Unauthorized Hacks . | . . . Terminals . | . . . Fabricators . | . . . Repair Stations . | . . . Recycling Units . | . . . Scanalyzers . | . . . Garrison Access . | . . . Data Cores Recovered . | . . . Used . | . . . Hacking Detections . | . . . Full Trace Events . | . . . Feedback Events . | . . . Feedback Blocked . | . . . Robot Schematics Acquired . | . . . Robots Built . | . . . Matter . | . . . Time . | . . . Total Robot Build Rating . | . . . Part Schematics Acquired . | . . . Parts Built . | . . . Matter . | . . . Time . | . . . Total Part Build Rating . | . . . Parts Repaired . | . . . Time . | . . . Parts Recycled . | . . . Recycled Matter . | . . . Retrieved Matter . | . . . Retrieved Components . | . . . Parts Scanalyzed . | . . . Part Schematics Acquired . | . . . Parts Damaged . | . . . Bothacking | -11 -10 -10 ------------ Run | Scr Mat Min Used RIF Installer . | . . . Robots Hacked . | . . . Non-combat . | . . . Combat . | . . . Robot Hacks Applied . | . . . Relay Couplers Released . | . . . Robots Rewired . | . . . Allies Hacked . | . . . Hacks Repelled . | . . . Allies | -11 -10 -10 -------- Run | Scr Mat Min Total Allies . | . . . Largest Group . | . . . Highest-Rated Group . | . . . Highest-Rated Ally . | . . . Total Orders . | . . . Ally Attacks . | . . . Total Damage . | . . . Kills . | . . . Allies Corrupted . | . . . Allies Melted . | . . . Intel | -11 -10 -10 ------- Run | Scr Mat Min Robot Analysis Total . | . . . Derelict Logs Recovered . | . . . Drone Launches . | . . . Drone Recoveries . | . . . Exploration | -11 -10 -10 ------------- Run | Scr Mat Min Turns Passed 1470 | 61 488 921 Spaces Moved 699 | 34 263 402 Core 5 | 3 2 . Treads 694 | 31 261 402 Legs . | . . . Wheels . | . . . Hover . | . . . Flight . | . . . Fastest Speed 50 | 50 160 160 Average Speed 159 | 150 160 160 Slowest Speed 200 | 160 200 180 Overloaded Moves . | . . . Propulsion Burnouts . | . . . Robots Hopped . | . . . Cave-ins Triggered . | . . . Exploration Rate (%) 44 | 4 51 79 Regions Visited 2 Branch Regions 1 Pre-discovered Areas . | . . . Known Exits Taken . | . . . Unknown Exits Taken 2 | 1 1 . Scrap Searched 2 | . . 2 Spaces Dug . | . . . Terrain Destroyed . | . . . Melee . | . . . Projectile . | . . . AOE . | . . . Terrain Rammed . | . . . Walls Destroyed . | . . . Machines Disabled . | . . . Actions | -11 -10 -10 --------- Run | Scr Mat Min Total 894 | 41 299 554 Wait 43 | . 7 36 Move 697 | 33 262 402 Hop . | . . . Pick Up 12 | 1 4 7 Fast Attach 15 | 6 9 . Attach 6 | . . 6 Detach . | . . . Swap 6 | 1 2 3 Drop 3 | . 2 1 Fire 110 | . 13 97 Melee . | . . . Ram . | . . . Kick . | . . . Crush 2 | . . 2 Escape Stasis . | . . . Rewire . | . . . Trap . | . . . Miscellaneous . | . . . Route ------- -11/Scrapyard -10/Materials (discovered 2 exits: [*Mat] / [*Min]) -10/Mines History --------- Turn | Location | Event 9 | -11/Scrapyard | Discovered new exit (range 16) 62 | -11/Scrapyard | Entered Materials 304 | -10/Materials | Discovered new exit (range 8) 309 | -10/Materials | Build established: Mutant 492 | -10/Materials | Discovered new exit (range 11) 550 | -10/Materials | Entered Mines 664 | -10/Mines | Joined a pair of Derelicts in attacking an 0b10 outpost 820 | -10/Mines | Excavation squad dispatched 820 | -10/Mines | A large section of the Mines collapsed 1070 | -10/Mines | Excavation squad dispatched 1320 | -10/Mines | Excavation squad dispatched 1339 | -10/Mines | Core integrity fell below 50% 1442 | -10/Mines | Core integrity fell below 20% 1471 | -10/Mines | Destroyed by G-34 Mercenary with Small Laser Last Messages --------------- 01397_ T-07 Excavator destroyed. 01400_ G-34 Mercenary knocked back. 01406_ G-34 Mercenary destroyed. 01409_ Core Extractor disabled. 01409_ Sml. Laser destroyed. 01412_ Lgt. Cannon destroyed. 01414_ T-07 Excavator is excavating. 01432_ G-34 Mercenary destroyed. 01434_ Acquired 47 matter. 01439_ Lgt. Treads destroyed. 01443_ G-34 Mercenary destroyed. 01445_ Lgt. Treads destroyed. 01447_ Hvy. Assault Rifle destroyed. 01451_ Acquired 11 matter. 01452_ Acquired 9 matter. 01454_ T-07 Excavator is excavating. 01455_ K-01 Serf collects debris. 01458_ T-07 Excavator is excavating. 01462_ Lgt. Angular Momentum Engine destroyed. 01463_ T-07 Excavator is excavating. Map ----- +----------------------------------------------------+ | ######???# #???????????????????????????? | | ##????????# #???????????????????????????? | | #?#####???# #???????????????????????????? | | #### ##??# #???????????????????????????? | | #?# ##?# #?????????????????#######???? | | ##?# ### ############???#### ##??? | | ##???# !* =| #??## ##?? | | ##??## ############## #### #?? | | #### ##????????????# """ #?? | | ##?????????????# """ #?? | | ##??????????????######## ## """ #?? | | # #????####??????????????# ### """ #?? | | ## ##???## ##????????????# #?# #?? | | ?## ######????# ######??????# #?## #?? | | ??######?????????# ##?????# #??## ##?? | | ??????????????????# #??#### ##### #??? | | ???????????????????# #### ## #??? | | ???????????????###??# != ##### #??? | | ??????????????## #??# ! ##### ####??? | | ?????????????##; #?## ####### # #?????? | | ????????????## t #?## # ####?# #?????? | | ???????????## ; #?#??# ### ##????? | | ???????????# ;; #???# * ### ##???? | | ???????????#; ####!| = ### #???? | | ????????????????#*!=!! % " " #?## #???? | | ????????????????#;!||! t @=% g"" #### ##???? | | ????????????????#!%*! ##### g" " ## #????? | | ???????????????##==! ##?## %= k #????? | | ??????????????### ####??# = #????? | | ?????????????## ##?????#% ##????? | | ????????????# # ##??????# ##?????? | | ??????????????# "#??????# ######??????? | | ??????????????####??????# ### ##???????????? | | ????????????????????????## ##?## #????????????? | | ??????????????????######?##????# #????????????? | | ?????????????????##!! "##??????# #????????????? | | ?????????????????#%%[! [#?????## #????????????? | | ?????????????????# ! [[!#?????# #????????????? | | ?????????????????##! ##?????#=% ##???????????? | | ?????????????????###++###?????## #???????????? | | ?????????????????# ######## #???????????? | | ???????????????### # ##??????????? | | ??????????????## ##### #??????????? | | ?????????????## ### ## ## #????????? | | ??????????#### ### ## #???????? | | ?????????## #?# ## #???????? | | ????????## ### #?# ### ##???????? | | ???????## ##?## ##?# #?#### ##????????? | | ???????# ##??#####??# #?????###?????????? | | #??????# ###???????# #?????????????????? | +----------------------------------------------------+ Best States ------------- Heat Dissipation 25 Energy Generation 18 Energy Capacity 250 Matter Stores 300 Matter Capacity 300 Sight Range 16 Terrain Scan Density 10 Evasion (%) 40 Recoil Reduction 2 Item Schematics ----------------- None Robot Schematics ------------------ None Fabricated ------------ Nothing Alien Tech Used ----------------- None Achievements -------------- None Challenges ------------ None Game ------ Seed DiametricHardlightWings Manual? 0 Play Time 00:11:16 Cumulative 203.1 hours Start 2021.07.24 @ 17:58:22 End 2021.07.24 @ 18:05:28 Sessions 1 Manual Loads 0 Difficulty Rogue Special Mode None Game No. 264 Rogue 177 Adventurer 87 Explorer 0 Win Type - Total 4 Types 3/0/0/1/0/0/0/0/0 Lore% 69 Gallery% 77 Achievement% 62 Wizard Run 0 Options --------- ASCII 0 Keyboard 1 Movement Numpad Keybinds 0 Fullscreen 1 Font 18/Smallcaps Map View 76x50 Tactical HUD 1 Map Filters NONE Filters NONE Steam 1 RUN: 97c1cf3a-4c10-4af3-ac81-983a6ccce2b3